fUSD/lending_fUSD_20250622
["ID","MTS","AMOUNT","RATE_DAILY","PERIOD"]
[366915833,1750569055022,-490.0,0.00019178,2]
[366915834,1750569055032,-500.0,0.00019178,2]
[366915835,1750569055043,-490.0,0.00019178,2]
[366915836,1750569055054,-3392.09,0.00019178,2]
[366915837,1750569055065,-490.0,0.00019178,2]
[366915838,1750569055076,-150.0,0.00019178,2]
[366915839,1750569055380,-668.21,0.00019178,2]
[366915840,1750569055432,-1739.01,0.00019178,2]
[366915841,1750569055446,-1605.92,0.00019178,2]
[366915842,1750569055456,-490.0,0.00019178,2]
[366915843,1750569055466,-490.0,0.00019178,2]
[366915844,1750569055475,-320.8984122,0.00019178,2]
[366915845,1750569055487,-1034.55,0.00019178,2]
[366915846,1750569055497,-594.24,0.00019178,2]
[366915847,1750569055506,-451.0882924,0.00019178,2]
[366915848,1750569055516,-4105.72,0.00019178,2]
[366915849,1750569055527,-490.0,0.00019178,2]
[366915850,1750569055537,-500.0,0.00019178,2]
[366915851,1750569055547,-500.0,0.00019178,2]
[366915852,1750569055556,-490.0,0.00019178,2]
[366915853,1750569055566,-500.0,0.00019178,2]
[366915854,1750569055576,-500.0,0.00019178,2]
[366915855,1750569055586,-500.0,0.00019178,2]
[366915856,1750569055597,-1312.62,0.00019178,2]
[366915857,1750569055608,-500.0,0.00019178,2]
[366915858,1750569055619,-490.0,0.00019178,2]
[366915859,1750569055631,-500.0,0.00019178,2]
[366915860,1750569055641,-490.0,0.00019178,2]
[366915861,1750569055650,-3212.36,0.00019178,2]
[366915862,1750569055660,-6471.54,0.00019178,2]
[366915863,1750569055670,-490.0,0.00019178,2]
[366915864,1750569055680,-6471.54,0.00019178,2]
[366915865,1750569055689,-6471.54,0.00019178,2]
[366915866,1750569055699,-6471.54,0.00019178,2]
[366915867,1750569055708,-1594.71,0.00019178,2]
[366915868,1750569055718,-6471.54,0.00019178,2]
[366915869,1750569055727,-6471.54,0.00019178,2]
[366915870,1750569055737,-490.0,0.00019178,2]
[366915871,1750569055746,-496.4349223,0.00019178,2]
[366915872,1750569055756,-760.3,0.00019178,2]
[366915873,1750569055766,-490.0,0.00019178,2]
[366915874,1750569055775,-490.0,0.00019178,2]
[366915875,1750569055785,-1631.25,0.00019178,2]
[366915876,1750569055794,-500.0,0.00019178,2]
[366915877,1750569055804,-500.0,0.00019178,2]
[366915878,1750569055814,-490.0,0.00019178,2]
[366915879,1750569055823,-490.0,0.00019178,2]
[366915880,1750569055833,-7125.6,0.00019178,2]
[366915881,1750569055842,-171.45,0.00019178,2]
[366915882,1750569055852,-744.25880383,0.00019178,2]
[366915883,1750569055861,-2107.18464494,0.00019178,2]
[366915884,1750569055870,-151.0,0.00019178,2]
[366915885,1750569055880,-151.0,0.00019178,2]
[366915886,1750569055889,-2264.10087164,0.00019199,2]
[366915887,1750569055899,-500.0,0.00019199,2]
[366915888,1750569055908,-500.0,0.00019199,2]
[366915889,1750569055918,-8414.59595918,0.000192,2]
[366915890,1750569055927,-6723.20135503,0.000192,2]
[366915891,1750569055936,-47082.80191879,0.000192,2]
[366915892,1750569055946,-151.0,0.000192,2]
[366915893,1750569055956,-162.898941,0.000192,2]
[366915894,1750569055965,-162.898941,0.000192,2]
[366915895,1750569055975,-151.686808,0.000192,2]
[366915896,1750569055984,-151.0,0.000192,2]
[366915897,1750569055994,-217.0,0.00019201,2]
[366915898,1750569056004,-500.0,0.00019203,2]
[366915899,1750569056015,-250.0,0.00019203,2]
[366915900,1750569056025,-500.0,0.00019203,2]
[366915901,1750569056035,-250.0,0.00019203,2]
[366915902,1750569056045,-500.0,0.00019203,2]
[366915903,1750569056055,-250.0,0.00019203,2]
[366915904,1750569056064,-500.0,0.00019205,2]
[366915905,1750569056073,-500.0,0.00019205,2]
[366915906,1750569056083,-402.32051416,0.00019205,2]
[366915907,1750569056093,-150.0,0.00019205,2]
[366915908,1750569056102,-150.0,0.00019205,2]
[366915909,1750569056112,-221.37678721,0.00019205,2]
[366915910,1750569056122,-500.0,0.00019205,2]
[366915911,1750569056131,-500.0,0.00019205,2]
[366915912,1750569056140,-500.0,0.00019205,2]
[366915913,1750569056150,-500.0,0.00019205,2]
[366915914,1750569056160,-500.0,0.00019205,2]
[366915915,1750569056170,-500.0,0.00019205,2]
[366915916,1750569056179,-150.0,0.00019205,2]
[366915917,1750569056188,-500.0,0.00019205,2]
[366915918,1750569056198,-150.79857448,0.00019205,2]
[366915919,1750569056207,-150.48351388,0.00019205,2]
[366915920,1750569056216,-150.0,0.00019205,2]
[366915921,1750569056227,-500.0,0.00019205,2]
[366915922,1750569056237,-150.0,0.00019205,2]
[366915923,1750569056247,-217.0,0.00019206,2]
[366915924,1750569056257,-8414.59595918,0.0001923,2]
[366915925,1750569056267,-6723.20135503,0.0001923,2]
[366915926,1750569056276,-502.66133715,0.00019232,2]
[366915927,1750569056286,-500.0,0.00019232,2]
[366915928,1750569056296,-155.2209032,0.00019233,2]
[366915929,1750569056306,-255.50049229,0.00019233,2]
[366915930,1750569056315,-500.0,0.00019233,2]
[366915931,1750569056325,-500.99245321,0.00019233,2]
[366915932,1750569056334,-501.44140873,0.00019233,2]
[366915933,1750569056344,-500.68412876,0.00019233,2]
[366915934,1750569056355,-567.82057631,0.00019233,2]
[366915935,1750569056364,-500.0,0.00019233,2]
[366915936,1750569056374,-150.46444261,0.00019233,2]
[366915937,1750569056385,-180.9730098,0.00019233,2]
[366915938,1750569056394,-150.9151092,0.00019233,2]
[366915939,1750569056406,-221.89726734,0.00019233,2]
[366915940,1750569056415,-150.0,0.00019233,2]
[366915941,1750569056425,-2347.87260389,0.00019254,2]
[366915942,1750569056435,-890.12,0.00019259,2]
[366915943,1750569056448,-1085.53,0.00019259,2]
[366915944,1750569056458,-500.0,0.0001926,2]
[366915945,1750569056467,-500.0,0.0001926,2]
[366915946,1750569056477,-152.79956233,0.0001926,2]
[366915947,1750569056488,-8414.59595918,0.00019261,2]
[366915948,1750569056498,-6723.20135503,0.00019261,2]
[366915949,1750569056507,-500.0,0.00019287,2]
[366915950,1750569056516,-339.59044936,0.00019288,2]
[366915951,1750569056526,-500.0,0.00019291,2]
[366915952,1750569056537,-500.0,0.00019291,2]
[366915953,1750569056547,-500.0,0.00019291,2]
[366915954,1750569056557,-6471.54,0.00019291,2]
[366915955,1750569056566,-8414.59595918,0.00019291,2]
[366915956,1750569056576,-6723.20135503,0.00019291,2]
[366915957,1750569056586,-1000.0,0.00019292,2]
[366915958,1750569056595,-16538.0446,0.00019292,2]
[366915959,1750569056605,-2160.1412,0.00019299,2]
[366915960,1750569056615,-1000.0,0.000193,2]
[366915961,1750569056624,-151.0,0.00019308,2]
[366915962,1750569056634,-195.647227,0.00019308,2]
[366915963,1750569056644,-151.0,0.00019308,2]
[366915964,1750569056655,-151.0,0.00019308,2]
[366915965,1750569056664,-151.0,0.00019308,2]
[366915966,1750569056674,-190.627065,0.00019308,2]
[366915967,1750569056684,-190.627065,0.00019308,2]
[366915968,1750569056694,-154.337416,0.00019308,2]
[366915969,1750569056704,-2434.74389024,0.00019309,2]
[366915970,1750569056714,-500.0,0.00019315,2]
[366915971,1750569056724,-194.0,0.00019316,2]
[366915972,1750569056734,-8414.59595918,0.00019322,2]
[366915973,1750569056744,-6723.20135503,0.00019322,2]
[366915974,1750569056754,-6243.89316368,0.00019327,2]
[366915975,1750569056764,-7206.99,0.00019339,2]
[366915976,1750569056775,-1483.36,0.00019339,2]
[366915977,1750569056784,-9999.99,0.00019339,2]
[366915978,1750569056795,-1831.44,0.00019339,2]
[366915979,1750569056805,-336.4,0.00019339,2]
[366915980,1750569056814,-3070.27,0.00019339,2]
[366915981,1750569056824,-999.99,0.00019339,2]
[366915982,1750569056834,-9999.99,0.00019339,2]
[366915983,1750569056845,-150.99,0.00019339,2]
[366915984,1750569056855,-150.99,0.00019339,2]
[366915985,1750569056864,-275.88,0.00019339,2]
[366915986,1750569056874,-359.49837882,0.00019342,2]
[366915987,1750569056884,-217.0,0.00019347,2]
[366915988,1750569056894,-8414.59595918,0.00019352,2]
[366915989,1750569056905,-255.41984092,0.00019352,2]
[366915990,1750569056915,-6723.20135503,0.00019352,2]
[366915991,1750569056925,-164.42141278,0.00019352,3]
[366915992,1750569056936,-845.98984755,0.00019352,2]
[366915993,1750569056945,-1409.60296374,0.00019364,2]
[366915994,1750569056955,-500.0,0.00019373,2]
[366915995,1750569056965,-500.0,0.00019373,2]
[366915996,1750569056975,-500.43012814,0.00019373,2]
[366915997,1750569056985,-500.0,0.00019373,2]
[366915998,1750569056995,-500.0,0.00019373,2]
[366915999,1750569057005,-500.0,0.00019373,2]
[366916000,1750569057015,-500.0,0.00019373,2]
[366916001,1750569057025,-528.80985038,0.00019373,2]
[366916002,1750569057035,-500.0,0.00019373,2]
[366916003,1750569057045,-500.0,0.00019373,2]
[366916004,1750569057055,-500.0,0.00019373,2]
[366916005,1750569057065,-502.52562412,0.00019373,2]
[366916006,1750569057075,-500.83582982,0.00019373,2]
[366916007,1750569057085,-500.0,0.00019373,2]
[366916008,1750569057095,-502.83672334,0.00019373,2]
[366916009,1750569057105,-559.69951743,0.00019373,2]
[366916010,1750569057115,-500.0,0.00019373,2]
[366916011,1750569057126,-367.84689339,0.00019373,2]
[366916012,1750569057136,-500.74374198,0.00019373,2]
[366916013,1750569057147,-500.0,0.00019373,2]
[366916014,1750569057157,-541.45082461,0.00019373,2]
[366916015,1750569057167,-156.07488646,0.00019373,2]
[366916016,1750569057176,-500.64588502,0.00019373,2]
[366916017,1750569057186,-151.0,0.00019382,2]
[366916018,1750569057196,-151.0,0.00019382,2]
[366916019,1750569057206,-575.99495,0.00019382,2]
[366916020,1750569057215,-151.0,0.00019382,2]
[366916021,1750569057225,-500.0,0.00019382,2]
[366916022,1750569057235,-500.0,0.00019383,2]
[366916023,1750569057245,-472.24053245,0.00019383,2]
[366916024,1750569057255,-79168.4966986,0.00019383,2]
[366916025,1750569057265,-4577.6170118,0.00019383,2]
[366916026,1750569057274,-151.0,0.00019383,2]
[366916027,1750569057285,-156.584189,0.00019383,2]
[366916028,1750569057295,-500.0,0.00019383,2]
[366916029,1750569057305,-500.0,0.00019383,2]
[366916030,1750569057315,-151.0,0.00019383,2]
[366916031,1750569057325,-151.0,0.00019383,2]
[366916032,1750569057335,-154.975174,0.00019383,2]
[366916033,1750569057345,-500.0,0.00019383,2]
[366916034,1750569057355,-500.0,0.00019383,2]
[366916035,1750569057365,-151.0,0.00019383,2]
[366916036,1750569057374,-151.0,0.00019383,2]
[366916037,1750569057385,-500.0,0.00019383,2]
[366916038,1750569057395,-6471.54,0.00019383,2]
[366916039,1750569057406,-6471.54,0.00019383,2]
[366916040,1750569057416,-151.0,0.00019384,2]
[366916041,1750569057426,-151.0,0.00019384,2]
[366916042,1750569057436,-151.0,0.00019384,2]
[366916043,1750569057450,-151.0,0.00019384,2]
[366916044,1750569057459,-300.108872,0.00019384,2]
[366916045,1750569057469,-151.0,0.00019384,2]
[366916046,1750569057480,-151.0,0.00019384,2]
[366916047,1750569057491,-436.94392,0.00019384,2]
[366916048,1750569057501,-436.94392,0.00019384,2]
[366916049,1750569057512,-436.94392,0.00019384,2]
[366916050,1750569057526,-436.94392,0.00019384,2]
[366916051,1750569057536,-765.681044,0.00019384,2]
[366916052,1750569057546,-765.681044,0.00019384,2]
[366916053,1750569057557,-765.681044,0.00019384,2]
[366916054,1750569057567,-765.681044,0.00019384,2]
[366916055,1750569057577,-151.0,0.00019384,2]
[366916056,1750569057587,-151.66978,0.00019384,2]
[366916057,1750569057598,-151.0,0.00019384,2]
[366916058,1750569057608,-151.0,0.00019384,2]
[366916059,1750569057618,-151.0,0.00019384,2]
[366916060,1750569057628,-152.998945,0.00019384,2]
[366916061,1750569057637,-151.0,0.00019384,2]
[366916062,1750569057649,-151.0,0.00019384,2]
[366916063,1750569057658,-151.0,0.00019384,2]
[366916064,1750569057669,-151.0,0.00019384,2]
[366916065,1750569057679,-151.0,0.00019384,2]
[366916066,1750569057689,-151.0,0.00019384,2]
[366916067,1750569057699,-2522.4603097,0.00019384,2]
[366916068,1750569057709,-190.627065,0.00019384,2]
[366916069,1750569057720,-190.627065,0.00019384,2]
[366916070,1750569057729,-151.0,0.00019384,2]
[366916071,1750569057739,-162.898941,0.00019384,2]
[366916072,1750569057749,-162.898941,0.00019384,2]
[366916073,1750569057875,-151.0,0.00019384,2]
[366916074,1750569057885,-151.0,0.00019384,2]
[366916075,1750569057895,-151.0,0.00019384,2]
[366916076,1750569057906,-151.0,0.00019384,2]
[366916077,1750569057916,-298.851782,0.00019384,2]
[366916078,1750569057926,-365117.18254717,0.00019384,2]
[366916079,1750569057936,-200.0,0.00019392,2]
[366916080,1750569057946,-300.0,0.00019392,2]
[366916081,1750569057955,-1165.59,0.00019397,2]
[366916082,1750569057965,-150.0,0.00019397,4]
[366916083,1750569057975,-150.0,0.00019397,4]
[366916084,1750569057985,-150.0,0.00019397,4]
[366916085,1750569057994,-150.0,0.00019397,4]
[366916086,1750569058004,-150.0,0.00019397,4]
[366916087,1750569058014,-150.0,0.00019397,4]
[366916088,1750569058024,-150.0,0.00019397,4]
[366916089,1750569058034,-1079.9,0.00019398,2]
[366916090,1750569058044,-500.0,0.00019398,2]
[366916091,1750569058053,-546.7,0.00019398,2]
[366916092,1750569058063,-500.0,0.00019398,2]
[366916093,1750569058073,-534.72,0.00019398,2]
[366916094,1750569058083,-500.0,0.00019398,2]
[366916095,1750569058093,-500.0,0.00019398,2]
[366916096,1750569058103,-1079.9,0.00019399,2]
[366916097,1750569058112,-1079.9,0.00019399,2]
[366916098,1750569058121,-1079.9,0.00019399,2]
[366916099,1750569058131,-500.0,0.00019399,2]
[366916100,1750569058141,-500.0,0.00019399,2]
[366916101,1750569058152,-500.0,0.00019399,2]
[366916102,1750569058162,-546.7,0.00019399,2]
[366916103,1750569058172,-546.7,0.00019399,2]
[366916104,1750569058182,-546.7,0.00019399,2]
[366916105,1750569058192,-500.0,0.00019399,2]
[366916106,1750569058201,-500.0,0.00019399,2]
[366916107,1750569058211,-500.0,0.00019399,2]
[366916108,1750569058220,-890.12,0.00019399,2]
[366916109,1750569058229,-890.12,0.00019399,2]
[366916110,1750569058238,-890.12,0.00019399,2]
[366916111,1750569058247,-890.12,0.00019399,2]
[366916112,1750569058257,-534.72,0.00019399,2]
[366916113,1750569058267,-534.72,0.00019399,2]
[366916114,1750569058277,-534.72,0.00019399,2]
[366916115,1750569058285,-500.0,0.00019399,2]
[366916116,1750569058294,-500.0,0.00019399,2]
[366916117,1750569058304,-500.0,0.00019399,2]
[366916118,1750569058314,-151.0,0.00019399,2]
[366916119,1750569058324,-500.0,0.00019399,2]
[366916120,1750569058334,-500.0,0.00019399,2]
[366916121,1750569058344,-500.0,0.00019399,2]
[366916122,1750569058354,-500.0,0.00019399,2]
[366916123,1750569058364,-332.37253871,0.00019399,2]
[366916124,1750569058374,-1085.53,0.00019399,2]
[366916125,1750569058384,-1085.53,0.00019399,2]
[366916126,1750569058394,-1085.53,0.00019399,2]
[366916127,1750569058405,-1085.53,0.00019399,2]
[366916128,1750569058415,-151.0,0.00019399,2]
[366916129,1750569058424,-151.0,0.00019399,2]
[366916130,1750569058434,-151.0,0.00019399,2]
[366916131,1750569058449,-151.0,0.00019399,2]
[366916132,1750569058459,-151.0,0.00019399,2]
[366916133,1750569058470,-500.0,0.00019399,2]
[366916134,1750569058481,-500.0,0.00019399,2]
[366916135,1750569058491,-500.0,0.00019399,2]
[366916136,1750569058501,-500.0,0.00019399,2]
[366916137,1750569058511,-151.0,0.00019399,2]
[366916138,1750569058523,-186.359546,0.00019399,2]
[366916139,1750569058533,-500.0,0.00019399,2]
[366916140,1750569058543,-500.0,0.00019399,2]
[366916141,1750569058553,-500.0,0.00019399,2]
[366916142,1750569058563,-6471.54,0.00019399,2]
[366916143,1750569058572,-6471.54,0.00019399,2]
[366916144,1750569058582,-6471.54,0.00019399,2]
[366916145,1750569058593,-6471.54,0.00019399,2]
[366916146,1750569058603,-901616.1776364,0.000194,2]
[366916147,1750569058613,-151.0,0.000194,2]
[366916148,1750569058623,-151.827622,0.000194,2]
[366916149,1750569058632,-178.654348,0.000194,2]
[366916150,1750569058643,-436.94392,0.000194,2]
[366916151,1750569058654,-436.94392,0.000194,2]
[366916152,1750569058664,-765.681044,0.000194,2]
[366916153,1750569058674,-765.681044,0.000194,2]
[366916154,1750569058684,-151.0,0.000194,2]
[366916155,1750569058694,-151.0,0.000194,2]
[366916156,1750569058704,-151.0,0.000194,2]
[366916157,1750569058714,-171.672728,0.000194,2]
[366916158,1750569058725,-151.0,0.000194,2]
[366916159,1750569058736,-151.0,0.000194,2]
[366916160,1750569058746,-151.0,0.000194,2]
[366916161,1750569058756,-151.0,0.000194,2]
[366916162,1750569058767,-190.627065,0.000194,2]
[366916163,1750569058776,-190.627065,0.000194,2]
[366916164,1750569058786,-151.0,0.000194,2]
[366916165,1750569058796,-151.0,0.000194,2]
[366916166,1750569058806,-162.898941,0.000194,2]
[366916167,1750569058816,-162.898941,0.000194,2]
[366916168,1750569058826,-151.0,0.000194,2]
[366916169,1750569058836,-151.0,0.000194,2]
[366916170,1750569058846,-151.0,0.000194,2]
[366916171,1750569058855,-151.0,0.000194,2]
[366916172,1750569058865,-151.0,0.000194,2]
[366916173,1750569058874,-151.0,0.000194,2]
[366916174,1750569058884,-151.0,0.000194,2]
[366916175,1750569058895,-185.5029585,0.0001942,2]
[366916176,1750569058905,-217.0,0.00019425,2]
[366916177,1750569058914,-388.0,0.00019425,2]
[366916178,1750569058923,-356.9,0.0001943,2]
[366916179,1750569058933,-327.83447737,0.00019443,2]
[366916180,1750569058943,-1079.9,0.0001945,2]
[366916181,1750569058953,-500.0,0.0001945,2]
[366916182,1750569058962,-546.7,0.0001945,2]
[366916183,1750569058972,-500.0,0.0001945,2]
[366916184,1750569058982,-890.12,0.0001945,2]
[366916185,1750569058991,-534.72,0.0001945,2]
[366916186,1750569059002,-500.0,0.0001945,2]
[366916187,1750569059012,-1085.53,0.0001945,2]
[366916188,1750569059021,-500.0,0.0001945,2]
[366916189,1750569059031,-500.0,0.0001945,2]
[366916190,1750569059040,-1079.9,0.00019451,2]
[366916191,1750569059050,-1079.9,0.00019451,2]
[366916192,1750569059059,-444.85911555,0.00019451,2]
[366916193,1750569059813,-635.04088445,0.00019451,2]
[366916194,1750569059823,-656.90911555,0.00019451,2]
[366916195,1750569059834,-422.99088445,0.00019451,2]
[366916196,1750569059843,-1079.9,0.00019451,2]
[366916197,1750569059853,-1079.9,0.00019451,2]
[366916198,1750569059862,-500.0,0.00019451,2]
[366916199,1750569059872,-500.0,0.00019451,2]
[366916200,1750569059881,-500.0,0.00019451,2]
[366916201,1750569059891,-500.0,0.00019451,2]
[366916202,1750569059900,-500.0,0.00019451,2]
[366916203,1750569059909,-500.0,0.00019451,2]
[366916204,1750569059919,-546.7,0.00019451,2]
[366916205,1750569059928,-546.7,0.00019451,2]
[366916206,1750569059937,-546.7,0.00019451,2]
[366916207,1750569059946,-546.7,0.00019451,2]
[366916208,1750569059956,-546.7,0.00019451,2]
[366916209,1750569059966,-546.7,0.00019451,2]
[366916210,1750569059976,-500.0,0.00019451,2]
[366916211,1750569059986,-500.0,0.00019451,2]
[366916212,1750569059996,-500.0,0.00019451,2]
[366916213,1750569060007,-500.0,0.00019451,2]
[366916214,1750569060016,-500.0,0.00019451,2]
[366916215,1750569060026,-500.0,0.00019451,2]
[366916216,1750569060037,-890.12,0.00019451,2]
[366916217,1750569060047,-890.12,0.00019451,2]
[366916218,1750569060058,-890.12,0.00019451,2]
[366916219,1750569060069,-890.12,0.00019451,2]
[366916220,1750569060079,-890.12,0.00019451,2]
[366916221,1750569060090,-890.12,0.00019451,2]
[366916222,1750569060101,-534.72,0.00019451,2]
[366916223,1750569060111,-534.72,0.00019451,2]
[366916224,1750569060121,-320.85341395,0.00019451,2]
[366916225,1750569060935,-490.0,0.00019178,2]
[366916226,1750569060946,-490.0,0.00019178,2]
[366916227,1750569060957,-274.82678882,0.00019178,2]
[366916228,1750569063025,-551.25010858,0.00018291,2]
[366916230,1750569371935,202.0,0.00016471,2]
[366916232,1750569731720,202.0,0.0001679,2]
[366916234,1750569881851,202.0,0.0001679,2]
[366916236,1750569909393,170.35,0.00013699,2]
[366916237,1750569913212,150.0,0.00017507,2]
[366916238,1750569913263,150.0,0.00017507,2]
[366916239,1750569913434,150.0,0.00017507,2]
[366916240,1750569919784,129.65,0.00017507,2]
[366916275,1750570092634,202.0,0.00017141,2]
[366916276,1750570119679,48130.96463816,0.000151,2]
[366916317,1750570231835,-20.35325244,0.00017507,2]
[366916318,1750570231846,-150.0,0.00017507,2]
[366916319,1750570231857,-150.0,0.00017507,2]
[366916320,1750570231868,-150.0,0.00017507,2]
[366916321,1750570231878,-250.0,0.00017539,2]
[366916322,1750570231888,-122.93340266,0.00017571,2]
[366916323,1750570231901,-425.45659734,0.00017571,2]
[366916324,1750570231911,-1500.0,0.00017591,2]
[366916325,1750570231921,-1412.87,0.00017595,2]
[366916326,1750570231931,-1200.0,0.00017596,2]
[366916327,1750570231942,-4612.24,0.00017597,2]
[366916328,1750570231952,-300.0,0.00017699,2]
[366916329,1750570231961,-500.0,0.000177,2]
[366916330,1750570231972,-6820.20802593,0.00017742,2]
[366916394,1750570232816,-956.76609016,0.00017742,2]
[366916395,1750570232828,-690.22759958,0.00017742,2]
[366916397,1750570232840,-2132.96828433,0.00017742,2]
[366916399,1750570232850,-500.0,0.00017893,2]
[366916400,1750570232860,-150.0,0.00017906,2]
[366916402,1750570232870,-2398.17,0.0001791,2]
[366916405,1750570232880,-500.0,0.0001793,2]
[366916407,1750570232889,-3031.08,0.00017952,2]
[366916408,1750570232899,-315.64,0.00018,2]
[366916409,1750570232909,-300.0,0.00018042,2]
[366916410,1750570232919,-1000.0,0.00018044,2]
[366916411,1750570232928,-250.0,0.00018107,2]
[366916412,1750570232938,-1957.856,0.0001814,2]
[366916413,1750570232948,-207.4,0.0001814,2]
[366916414,1750570232958,-7308.34,0.00018151,2]
[366916415,1750570232967,-2030.296672,0.00018195,2]
[366916416,1750570232977,-166.06,0.00018215,2]
[366916417,1750570232987,-200.0,0.00018227,2]
[366916418,1750570232997,-2105.41764886,0.0001825,2]
[366916419,1750570233007,-2751.0,0.00018258,2]
[366916420,1750570233016,-300.0,0.00018305,2]
[366916421,1750570233026,-2183.31810187,0.00018305,2]
[366916422,1750570233036,-11265.87,0.00018311,2]
[366916423,1750570233046,-1000.73038503,0.0001836,2]
[366916424,1750570233066,-1073.98772677,0.0001836,2]
[366916425,1750570233095,-189.38275984,0.0001836,2]
[366916426,1750570233105,-161.91,0.00018402,2]
[366916427,1750570233115,-193.58,0.00018411,2]
[366916428,1750570233125,-1938.95706606,0.00018415,2]
[366916429,1750570233137,-211.96719516,0.00018415,2]
[366916430,1750570233147,-202.0,0.00018523,3]
[366916431,1750570233158,-194.0,0.00018939,2]
[366916432,1750570233168,-2586.0,0.00019,2]
[366916433,1750570233178,-335.93236239,0.00019,2]
[366916434,1750570233198,-1019.90508553,0.00019,2]
[366916438,1750570237752,-974.62255208,0.00019,2]
[366916439,1750570237762,-330.37777356,0.00019,2]
[366916440,1750570237775,-834.49222644,0.00019,2]
[366916441,1750570237790,-151.0,0.00019067,2]
[366916442,1750570237800,-241.98394131,0.00019067,2]
[366916443,1750570237811,-151.0,0.00019067,2]
[366916444,1750570237823,-185.5029585,0.00019078,2]
[366916445,1750570237833,-281.00098062,0.00019078,2]
[366916446,1750570237842,-4033.92081309,0.00019078,2]
[366916447,1750570237853,-166.48401672,0.00019078,2]
[366916448,1750570237863,-4500.06522994,0.00019078,2]
[366916449,1750570237875,-1030.97006224,0.00019078,2]
[366916450,1750570237886,-57.02993776,0.00019078,2]
[366916451,1750570237911,-942.97006224,0.00019078,2]
[366916452,1750570237922,-1245.37993775,0.00019078,2]
[366916528,1750570239963,-4393.466,0.00019078,2]
[366916529,1750570239975,-8716.26981503,0.00019078,2]
[366916534,1750570241548,202.0,0.00017141,2]
[366916538,1750570243544,-2113.84544722,0.00019078,2]
[366916539,1750570243555,-5000.0,0.00019078,2]
[366916540,1750570243565,-150.0,0.000191,2]
[366916541,1750570243575,-1165.59,0.000191,2]
[366916542,1750570243585,-1010.0,0.000191,2]
[366916543,1750570243594,-1510.8,0.00019123,2]
[366916544,1750570243604,-1165.59,0.00019123,2]
[366916545,1750570243614,-4033.92081301,0.00019139,2]
[366916546,1750570243624,-5531.03529212,0.00019139,2]
[366916547,1750570243633,-254.98,0.00019152,2]
[366916548,1750570243643,-160.76,0.00019168,2]
[366916549,1750570243653,-160.76,0.00019168,2]
[366916550,1750570243663,-160.76,0.00019168,2]
[366916551,1750570243672,-160.76,0.00019168,2]
[366916552,1750570243682,-168.55912531,0.00019168,2]
[366916553,1750570243692,-502.37561318,0.00019173,2]
[366916554,1750570243702,-1000.0,0.00019173,2]
[366916555,1750570243712,-500.0,0.00019177,2]
[366916556,1750570243722,-227.42107538,0.00019177,2]
[366916557,1750570243732,-583.29914952,0.00019177,2]
[366916558,1750570243742,-490.0,0.00019178,2]
[366916559,1750570243752,-151.0,0.00019178,2]
[366916560,1750570243763,-490.0,0.00019178,2]
[366916561,1750570243773,-490.0,0.00019178,2]
[366916562,1750570243792,-490.0,0.00019178,2]
[366916563,1750570243802,-165.07429015,0.00019178,2]
[366916564,1750570243813,-490.0,0.00019178,2]